bitfinex-derivatives/quotes_ETHF0:USTF0_20250427
["timestamp","ask_amount","ask_price","bid_price","bid_amount"]
[1745756941629,1.10927,1802.6,1802.3,10.3017]
[1745756941827,1.10927,1802.6,1802.5,1.10928]
[1745756942217,1.10927,1802.6,1802.5,7.39128]
[1745756943031,7.93102,1802.7,1802.6,1.10926]
[1745756943227,7.93102,1802.7,1802.6,2.78856]
[1745756943427,6.8218,1802.7,1802.6,2.78856]
[1745756943627,3.2078,1802.7,1802.6,2.78856]
[1745756943827,4.317,1802.7,1802.6,2.78856]
[1745756944431,4.317,1802.7,1802.6,1.6793]
[1745756945830,5.9416,1802.7,1802.6,1.6793]
[1745756947331,2.7338,1802.7,1802.6,1.6793]
[1745756947829,2.7338,1802.7,1802.6,2.78856]
[1745756948532,2.7338,1802.7,1802.6,1.6793]
[1745756950337,1.10926,1802.6,1802.5,4.5676]
[1745756951035,2.78806,1802.6,1802.5,3.722]
[1745756951824,1.10951,1802.2,1802.1,0.27739251]
[1745756952128,1.10979,1801.8,1801.6,0.27739251]
[1745756952330,1.10961,1802.1,1801.6,45.98599251]
[1745756952536,4.83152,1802.2,1801.9,1.10963]
[1745756952729,3.722,1802.2,1802.1,0.27739251]
[1745756952937,4.83151,1802.2,1802.1,0.27739251]
[1745756953133,7.94331,1802.2,1802.1,0.27739251]
[1745756953330,12.94331,1802.2,1802.1,0.27739251]
[1745756953530,7.94331,1802.2,1802.1,0.27739251]
[1745756953730,12.94331,1802.2,1802.1,0.27739251]
[1745756954637,1.10963,1802.0,1801.9,0.27739251]
[1745756955230,1.10963,1802.0,1801.9,5.72429251]
[1745756956335,2.75311,1802.1,1801.9,5.72429251]
[1745756956546,2.75311,1802.1,1802.0,1.7249]
[1745756956839,1.10963,1802.0,1801.9,3.99939251]
[1745756957038,1.10963,1802.0,1801.9,5.72429251]
[1745756959537,4.31743,1802.0,1801.9,5.72429251]
[1745756960243,4.31743,1802.0,1801.9,2.00229251]
[1745756961939,4.31319566,1802.0,1801.9,2.00229251]
[1745756963847,1.10969,1801.9,1801.8,0.8517]
[1745756964045,1.10975,1801.8,1801.7,2.5181]
[1745756965151,1.10975,1801.8,1801.7,0.8354]
[1745756965448,4.31755,1801.8,1801.7,0.8354]
[1745756966150,4.31755,1801.8,1801.7,2.5181]
[1745756966947,4.73673,1801.9,1801.7,3.62788]
[1745756967149,1.10975,1801.8,1801.7,4.5574]
[1745756967551,1.10975,1801.8,1801.7,6.2246]
[1745756967850,5.97305,1801.8,1801.7,4.5574]
[1745756968247,5.97305,1801.8,1801.7,0.8354]
[1745756968548,1.10975,1801.8,1801.7,41.6354]
[1745756969155,1.10975,1801.8,1801.7,45.3574]
[1745756970151,1.10975,1801.8,1801.7,41.6354]
[1745756971356,1.10975,1801.8,1801.7,46.9432]
[1745756972155,1.10975,1801.8,1801.7,43.2212]
[1745756972359,1.10975,1801.8,1801.4,3.2078]
[1745756972360,1.10994,1801.5,1801.4,3.2078]
[1745756972561,1.10994,1801.5,1801.4,4.7936]
[1745756972757,1.10994,1801.5,1801.4,42.3858]
[1745756973152,1.10994,1801.5,1801.4,46.1078]
[1745756976159,6.10994,1801.5,1801.4,2.25044]
[1745756976360,1.10994,1801.5,1801.4,2.25044]
[1745756976561,3.2078,1801.6,1801.4,3.36042]
[1745756976859,4.31768,1801.6,1801.5,42.4386]
[1745756977260,1.10987,1801.7,1801.5,43.5485]
[1745756977559,1.10986,1801.7,1801.6,1.6386]
[1745756977761,1.10986,1801.7,1801.6,2.4798]
[1745756978863,4.31759,1801.8,1801.6,2.4798]
[1745756979051,4.31759,1801.8,1801.7,2.4704]
[1745756979563,3.2078,1801.8,1801.7,3.58021]
[1745756980157,4.73769,1801.9,1801.8,1.10975]
[1745756980357,4.73769,1801.9,1801.8,2.76675]
[1745756980551,3.628,1801.9,1801.8,2.76675]
[1745756980762,3.628,1801.9,1801.8,43.56675]
[1745756981358,4.73769,1801.9,1801.8,47.28875]
[1745756981869,4.73769,1801.9,1801.8,46.179]
[1745756983368,4.73769,1801.9,1801.8,47.28875]
[1745756983560,4.73769,1801.9,1801.8,46.179]
[1745756984565,4.73769,1801.9,1801.8,49.3868]
[1745756984759,4.73769,1801.9,1801.8,46.179]
[1745756987463,3.2078,1802.4,1801.8,57.16107]
[1745756987669,3.2078,1802.4,1802.1,1.10955]
[1745756987670,1.10955,1802.2,1802.1,1.10955]
[1745756987870,1.10955,1802.2,1802.1,2.4627]
[1745756990370,4.31735,1802.2,1802.1,2.4627]
[1745756991371,1.10957,1802.1,1802.0,1.10962]
[1745756991571,1.10957,1802.1,1802.0,3.49212]
[1745756992066,1.10957,1802.1,1802.0,46.9045]
[1745756993764,1.10957,1802.1,1802.0,6.1045]
[1745756993965,9.87457,1802.1,1802.0,3.722]
[1745756994164,16.95366,1802.1,1801.7,4.31751]
[1745756994376,11.95366,1802.1,1801.8,1.565]
[1745756995172,1.10975,1801.9,1801.8,1.565]
[1745756995873,5.4577,1802.1,1801.8,1.565]
[1745756996071,1.10969,1801.9,1801.8,1.565]
[1745756996267,3.765,1802.1,1801.8,2.67475]
[1745756996666,1.10963,1802.0,1801.9,1.572]
[1745756998069,4.87461,1802.1,1801.9,6.40369]
[1745756998276,4.87461,1802.1,1802.0,0.8124]
[1745756998476,4.87461,1802.1,1802.0,3.2245]
[1745756999077,1.10963,1802.0,1801.9,3.722]
[1745756999373,1.10975,1801.8,1801.7,3.2245]
[1745757000172,1.10975,1801.8,1801.7,6.9465]
[1745757000577,4.87475,1801.8,1801.7,3.722]
[1745757001073,8.08255,1801.8,1801.4,40.8]
[1745757001271,1.10994,1801.5,1801.4,42.51]
[1745757002181,1.10994,1801.5,1801.4,46.232]
[1745757003976,5.69774,1801.5,1801.4,5.432]
[1745757004385,7.25974,1801.5,1801.4,5.432]
[1745757004579,7.25974,1801.5,1801.4,3.722]
[1745757005281,6.43699,1801.5,1801.3,44.0233]
[1745757005472,6.43699,1801.5,1801.4,1.6032]
[1745757005779,4.87499,1801.5,1801.4,1.6032]
[1745757006179,4.87499,1801.5,1801.4,5.3252]
[1745757007680,4.87599,1801.5,1801.4,6.4352]
[1745757007882,4.87599,1801.5,1801.4,5.3252]
[1745757008479,3.766,1801.5,1801.4,6.4352]
[1745757008677,1.10983,1801.7,1801.6,1.10986]
[1745757009277,1.10983,1801.7,1801.6,1.90046]
[1745757009477,1.10983,1801.7,1801.6,3.51186]
[1745757011175,1.10983,1801.7,1801.6,2.402]
[1745757012881,2.70753,1801.7,1801.6,2.402]
[1745757014187,1.10983,1801.7,1801.6,3.51188]
[1745757014393,1.10983,1801.7,1801.6,2.402]
[1745757016988,1.10983,1801.7,1801.6,5.6098]
[1745757017592,1.10983,1801.7,1801.6,2.402]
[1745757017889,1.10983,1801.7,1801.6,3.1927]
[1745757018689,1.10988,1801.6,1801.5,4.83194]
[1745757018889,1.10988,1801.6,1801.5,5.68934]
[1745757020086,1.10988,1801.6,1801.5,8.13074]
[1745757020386,1.10986,1801.7,1801.6,1.10985]
[1745757020585,1.10986,1801.7,1801.6,2.74845]
[1745757020888,1.10986,1801.7,1801.6,1.6386]
[1745757023394,2.76046,1801.7,1801.6,1.6386]
[1745757024593,1.10986,1801.7,1801.6,1.6386]
[1745757026593,2.75396,1801.7,1801.6,1.6386]
[1745757028001,1.10988,1801.6,1801.5,3.722]
[1745757028302,1.10988,1801.6,1801.3,40.8]
[1745757028303,1.11,1801.4,1801.3,43.2417]
[1745757028890,2.8257,1801.4,1801.3,43.2417]
[1745757029298,2.8257,1801.4,1801.3,46.9637]
[1745757029997,1.11,1801.4,1801.3,46.9637]
[1745757032087,2.7101,1801.4,1801.3,46.9637]
[1745757038198,2.7101,1801.4,1801.3,3.722]
[1745757039402,2.7101,1801.4,1801.3,5.3126]
[1745757040802,1.11012,1801.2,1801.1,44.0078]
[1745757041008,1.11012,1801.2,1801.1,40.8]
[1745757041406,2.71452,1801.2,1801.1,40.8]
[1745757041709,6.43752,1801.2,1801.1,43.3278]
[1745757043306,1.11018,1801.1,1801.0,3.722]
[1745757043512,5.93368,1801.1,1801.0,3.722]
[1745757044906,5.93368,1801.1,1801.0,5.3984]
[1745757045207,5.93368,1801.1,1801.0,1.6764]
[1745757045412,1.11051,1800.6,1800.4,3.2078]
[1745757045607,3.723,1800.7,1800.4,8.50043]
[1745757045805,3.723,1800.7,1800.6,4.31829]
[1745757046206,3.723,1800.7,1800.6,5.97679]
[1745757046607,1.6157,1801.0,1800.6,4.8663]
[1745757046808,1.6157,1801.0,1800.8,4.31812]
[1745757046809,1.11026,1801.0,1800.8,4.31812]
[1745757047114,4.83326,1801.0,1800.9,2.4482]
[1745757048316,4.83326,1801.0,1800.9,6.1702]
[1745757049713,4.83326,1801.0,1800.9,7.28051]
[1745757049917,4.83326,1801.0,1800.9,6.1702]
[1745757050919,4.83326,1801.0,1800.9,7.28051]
[1745757051117,4.83326,1801.0,1800.9,6.1702]
[1745757051512,4.83326,1801.0,1800.9,7.28051]
[1745757051714,4.83326,1801.0,1800.9,6.1702]
[1745757051913,4.83326,1801.0,1800.9,7.28051]
[1745757052713,4.83326,1801.0,1800.9,6.1702]
[1745757058439,4.83326,1801.0,1800.9,7.28051]
[1745757058841,4.83326,1801.0,1800.9,6.1702]
[1745757059340,4.83326,1801.0,1800.9,7.28051]
[1745757059739,4.83326,1801.0,1800.9,6.1702]
[1745757060040,4.83326,1801.0,1800.9,7.28051]
[1745757060240,4.83326,1801.0,1800.9,6.1702]
[1745757060436,4.83326,1801.0,1800.9,7.28051]
[1745757061441,4.83326,1801.0,1800.9,6.1702]
[1745757065647,9.83326,1801.0,1800.9,3.722]
[1745757065832,10.67696,1801.0,1800.9,3.722]
[1745757066032,12.26326,1801.0,1800.9,3.722]
[1745757066236,1.11031,1800.9,1800.8,1.6744]
[1745757066445,2.69661,1800.9,1800.8,1.6744]
[1745757067245,2.69661,1800.9,1800.8,3.722]
[1745757067543,5.90441,1800.9,1800.8,3.722]
[1745757068041,4.31811,1800.9,1800.8,6.40337]
[1745757068241,4.83431,1800.9,1800.8,6.40332]
[1745757068442,4.83431,1800.9,1800.8,5.293]
[1745757070250,6.43231,1800.9,1800.8,5.293]
[1745757075249,6.43231,1800.9,1800.8,3.722]
[1745757077239,1.11037,1800.8,1800.7,2.4396]
[1745757078153,2.82397,1800.8,1800.7,3.722]
[1745757078442,11.83137,1800.8,1800.7,1.27715]
[1745757078647,11.92499642,1800.8,1800.7,1.27715]
[1745757078849,6.92499642,1800.8,1800.7,1.27715]
[1745757079247,1.11061,1800.4,1800.3,1.6042]
[1745757079550,3.681,1800.4,1800.3,2.71488]
[1745757079738,4.79161,1800.4,1800.3,1.6042]
[1745757079940,3.681,1800.4,1800.3,2.71488]
[1745757080142,3.681,1800.6,1800.5,1.11055]
[1745757080347,4.79149,1800.6,1800.4,2.70557]
[1745757080542,4.79149,1800.6,1800.5,2.4604]
[1745757080744,4.79149,1800.6,1800.5,3.2551]
[1745757084653,4.79149,1800.6,1800.5,7.57345]
[1745757084956,4.79149,1800.6,1800.5,6.4629]
[1745757085655,4.79149,1800.6,1800.5,3.2551]
[1745757086357,4.79149,1800.6,1800.5,4.36565]
[1745757086654,4.79149,1800.6,1800.5,3.2551]
[1745757087457,4.79149,1800.6,1800.5,4.36565]
[1745757087849,4.79149,1800.6,1800.5,3.2551]
[1745757089056,4.79149,1800.6,1800.5,4.36565]
[1745757090757,4.79149,1800.6,1800.5,3.2551]
[1745757092353,4.79149,1800.6,1800.5,4.36565]
[1745757092559,3.2078,1801.0,1800.5,6.4629]
[1745757092759,4.79132,1800.9,1800.8,1.11037]
[1745757092958,4.79132,1800.9,1800.8,4.35007]
[1745757093150,1.1102,1801.1,1800.8,3.2397]
[1745757093464,3.681,1801.0,1800.9,5.95757]
[1745757093758,4.79124,1801.0,1800.9,5.95757]
[1745757093959,4.79124,1801.0,1800.9,4.8473]
[1745757094652,3.681,1801.0,1800.9,5.95761]
[1745757094959,4.79124,1801.0,1800.9,1.6395]
[1745757095862,6.47534,1801.0,1800.9,1.6395]
[1745757099058,8.5729,1801.0,1800.6,3.2078]
[1745757099258,13.40514,1801.0,1800.9,1.7047]
[1745757099465,1.11031,1800.9,1800.8,1.6519]
[1745757099764,2.83921,1800.9,1800.8,1.6519]
[1745757100664,1.11043,1800.7,1800.6,3.2078]
[1745757100868,4.79143,1800.7,1800.6,5.7339]
[1745757101564,4.79143,1800.7,1800.6,6.84439]
[1745757101565,3.681,1800.7,1800.6,6.84439]
[1745757102264,4.79143,1800.7,1800.6,6.84439]
[1745757104167,4.79143,1800.7,1800.6,5.7339]
[1745757112976,4.79143,1800.7,1800.6,6.84439]
[1745757113171,4.79143,1800.7,1800.6,5.7339]
[1745757114573,3.681,1800.7,1800.4,4.31839]
[1745757114875,1.11054,1800.6,1800.5,2.5114]
[1745757117779,2.79954,1800.6,1800.5,2.5114]
[1745757123178,1.11054,1800.6,1800.5,2.5114]
[1745757124774,10.98404,1800.6,1799.8,3.2078]
[1745757125078,1.11092,1799.9,1799.8,0.8533]
[1745757125379,4.8319,1800.0,1799.8,43.57585]
[1745757125980,4.8319,1800.0,1799.8,42.4649]
[1745757126182,1.11092,1799.9,1799.8,42.4649]
[1745757126577,1.11092,1799.9,1799.8,1.6649]
[1745757126876,1.11105,1799.7,1799.6,5.65772612]
[1745757127078,1.11105,1799.7,1799.6,4.52169612]
[1745757127079,13.46009385,1799.7,1799.6,4.52169612]
[1745757127283,17.27560427,1799.7,1799.6,4.52169612]
[1745757127482,2.77795,1799.5,1799.0,6.24799612]
[1745757127781,3.721,1799.4,1799.1,0.854]
[1745757127981,3.721,1799.5,1799.4,1.11121]
[1745757128285,3.721,1799.5,1799.2,3.2078]
[1745757128479,4.83223,1799.5,1799.2,3.54022]
[1745757128678,4.83223,1799.5,1799.3,1.6434]
[1745757128888,1.11123,1799.4,1799.3,1.6434]
[1745757129275,1.11115,1799.6,1799.3,1.6434]
[1745757129474,3.2078,1799.8,1799.3,1.6434]
[1745757129677,4.83305,1799.7,1799.5,1.11116]
[1745757129875,4.83305,1799.7,1799.6,3.2525]
[1745757130491,6.49345,1799.7,1799.6,3.2525]
[1745757133282,10.3824,1799.7,1799.2,3.2078]
[1745757133488,1.11129,1799.3,1799.2,2.4204]
[1745757133689,1.11136,1799.2,1799.1,0.8448]
[1745757133885,2.67536,1799.2,1799.1,0.8448]
[1745757134087,1.11142,1799.1,1799.0,2.4204]
[1745757134381,2.67542,1799.1,1799.0,2.4204]
[1745757134587,2.67542,1799.1,1798.8,0.8448]
[1745757134588,1.564,1799.1,1798.8,3.2078]
[1745757134783,4.88548,1799.0,1798.9,2.5198]
[1745757134982,4.88548,1799.0,1798.9,0.8095]
[1745757135181,3.774,1799.0,1798.8,41.6405]
[1745757135389,2.72944,1798.9,1798.8,41.6405]
[1745757135587,1.11154,1798.9,1798.8,41.6405]
[1745757138294,2.75574,1798.9,1798.8,41.6405]
[1745757138490,1.6442,1798.9,1798.6,3.2078]
[1745757138794,3.774,1799.0,1798.6,4.31953]
[1745757138795,1.11165,1798.8,1798.6,4.31953]
[1745757138994,1.11165,1798.8,1798.7,40.8]
[1745757139695,3.774,1799.0,1798.8,1.11157]
[1745757139883,4.88548,1799.0,1798.9,0.8042]
[1745757140079,1.11154,1798.9,1798.8,0.8235]
[1745757140486,1.11173,1798.6,1798.5,0.8042]
[1745757140685,0.19342117,1798.6,1797.7,0.2192803]
[1745757140890,1.11222,1797.8,1797.7,0.2192803]
[1745757141085,4.83422,1797.8,1797.7,3e-07]
[1745757141288,9.83422,1797.8,1797.7,3e-07]
[1745757141484,12.43881155,1797.8,1797.7,3e-07]
[1745757141791,7.43881155,1797.8,1797.7,3e-07]
[1745757141988,7.34542,1797.8,1797.7,3e-07]
[1745757142186,3.62342,1797.8,1797.7,3e-07]
[1745757143084,1.7278,1797.8,1797.7,3e-07]
[1745757143286,2.84002,1797.8,1797.7,3e-07]
[1745757143898,8.09599,1797.9,1797.7,3e-07]
[1745757144095,6.9838,1797.9,1797.7,3e-07]
[1745757144396,3.776,1797.9,1797.7,3e-07]
[1745757144596,1.11222,1797.8,1797.7,3e-07]
[1745757145492,2.69662,1797.8,1797.7,3e-07]
[1745757145691,1.11222,1797.8,1797.7,3e-07]
[1745757146794,4.88818,1797.9,1797.7,1.1122303]
[1745757147101,1.112,1798.2,1797.9,1.11212]
[1745757147286,1.11204,1798.1,1798.0,0.8001]
[1745757147996,1.11201,1798.2,1798.0,1.9122]
[1745757148200,4.88892,1798.3,1798.1,1.112]
[1745757148501,3.777,1798.3,1798.0,1.6271]
[1745757148694,3.2078,1798.4,1798.0,1.6271]
[1745757148993,1.11202,1798.2,1798.0,2.73917]
[1745757149298,1.11195,1798.3,1798.1,1.11202]
[1745757149499,1.11197,1798.2,1798.0,2.73917]
[1745757149794,1.11197,1798.2,1798.1,1.11204]
[1745757149991,1.11195,1798.3,1798.1,1.11204]
[1745757150797,4.8497,1798.4,1798.0,2.73915]
[1745757150999,1.11199,1798.2,1798.0,2.73915]
[1745757151300,1.11199,1798.2,1798.1,1.11204]
[1745757151502,1.11199,1798.2,1798.0,2.73915]
[1745757151796,0.02,1798.5,1798.4,1.11185]
[1745757152196,0.02,1798.5,1798.4,9.59765]
[1745757152495,0.02,1798.5,1798.4,50.39765]
[1745757153504,0.02,1798.5,1798.4,45.39765]
[1745757154796,3.777,1798.9,1798.4,50.39765]
[1745757154998,1.11161,1798.8,1798.7,3.2078]
[1745757155607,1.11161,1798.8,1798.7,1.11164]
[1745757156303,1.11161,1798.8,1798.7,1.11166]
[1745757156607,3.777,1798.9,1798.6,2.74448]
[1745757156798,1.11166,1798.7,1798.6,2.74448]
[1745757156992,3.777,1798.9,1798.6,1.11168]
[1745757157197,1.11166,1798.7,1798.6,1.11168]
[1745757157396,1.11166,1798.7,1798.5,4.0483]
[1745757157604,1.11165,1798.8,1798.6,1.11168]
[1745757158501,1.1117,1798.7,1798.6,1.11171]
[1745757160206,1.1117,1798.7,1798.6,1.11172]
[1745757160407,8.16377,1798.9,1798.5,4.0483]
[1745757160706,1.11171,1798.7,1798.6,1.11172]
[1745757161405,1.11163,1798.8,1798.7,1.11164]
[1745757161608,1.11169,1798.7,1798.6,1.1117]
[1745757162408,1.11173,1798.6,1798.5,5.16007]
[1745757163106,1.1117,1798.7,1798.6,1.11171]
[1745757163899,1.11163,1798.8,1798.7,1.11164]
[1745757164103,1.11166,1798.7,1798.6,1.11169]
[1745757164304,5.3849,1798.9,1798.6,1.11169]
[1745757164502,1.11166,1798.8,1798.6,1.11169]
[1745757165102,1.11165,1798.8,1798.7,1.11165]
[1745757165704,1.11169,1798.7,1798.6,1.1117]
[1745757166003,1.11154,1798.9,1798.8,1.11159]
[1745757166607,1.11153,1799.0,1798.9,1.11154]
[1745757166900,7.0808,1799.2,1798.9,1.11151]
[1745757167094,1.1115,1799.0,1798.9,1.11151]
[1745757168106,1.11149,1799.0,1798.9,1.11149]
[1745757168598,1.1116,1798.8,1798.7,3.2078]
[1745757168805,1.11173,1798.6,1798.5,5.96013]
[1745757169402,1.11169,1798.7,1798.6,1.11169]
[1745757169803,1.5636,1798.8,1798.5,4.8484]
[1745757170012,1.11173,1798.7,1798.6,1.11172]
[1745757170305,5.98659,1799.0,1798.5,4.8484]
[1745757170306,3.2078,1799.0,1798.5,4.8484]
[1745757170510,5.98656,1799.0,1798.5,4.8484]
[1745757170700,1.11166,1798.7,1798.6,1.11168]
[1745757171202,1.11166,1798.7,1798.4,0.278]
[1745757171203,5.0,1798.7,1798.4,0.278]
[1745757171401,4.31959,1798.5,1798.4,0.278]
[1745757171603,9.31959,1798.5,1798.4,0.278]
[1745757171803,10.93379,1798.5,1798.4,0.278]
[1745757172304,14.65579,1798.5,1798.4,0.278]
[1745757172603,14.75087539,1798.5,1798.4,0.278]
[1745757172803,14.65579,1798.5,1798.4,0.278]
[1745757173012,1.11204,1798.1,1798.0,0.8661]
[1745757173509,1.11204,1798.1,1798.0,41.6661]
[1745757174105,2.72622,1798.2,1798.0,44.4522]
[1745757174607,2.80054,1798.1,1798.0,43.3401]
[1745757175407,1.6885,1798.1,1798.0,44.4522]
[1745757176410,2.80054,1798.1,1798.0,44.4522]
[1745757176809,1.1121,1798.0,1797.9,3.2078]
[1745757177013,1.11216,1797.9,1797.8,0.2614]
[1745757177213,1.11216,1797.9,1797.8,41.0614]
[1745757177712,2.76206,1797.9,1797.8,41.0614]
[1745757177913,1.11222,1797.8,1797.7,4.8126003]
[1745757178208,2.76212,1797.8,1797.7,3e-07]
[1745757178414,2.76212,1797.8,1797.7,40.8000003]
[1745757178910,2.76212,1797.8,1797.7,3e-07]
[1745757182214,3.2078,1798.2,1797.8,1.11217]
[1745757182409,1.11214,1798.0,1797.8,1.11217]
[1745757182612,1.11214,1798.0,1797.9,1.6316]
[1745757182811,1.11214,1798.0,1797.9,2.74376]
[1745757183032,1.11214,1798.0,1797.9,1.6316]
[1745757183715,1.11214,1798.0,1797.9,2.74376]
[1745757183916,1.11214,1798.0,1797.9,1.6316]
[1745757184319,1.11214,1798.0,1797.9,2.74376]
[1745757184516,4.0074,1798.4,1797.9,6.6316]
[1745757184715,4.0074,1798.4,1798.2,1.11197]
[1745757184716,1.11197,1798.3,1798.2,1.11197]
[1745757184919,1.11189,1798.4,1798.3,1.11191]
[1745757185117,1.11184,1798.5,1798.3,1.11191]
[1745757185418,3.874,1798.6,1798.5,1.11179]
[1745757185615,1.11173,1798.6,1798.5,1.11179]
[1745757185818,1.11173,1798.6,1798.5,2.82869]
[1745757186024,1.7196,1798.7,1798.5,2.82869]
[1745757186319,1.11163,1798.8,1798.6,3.2078]
[1745757186519,1.11166,1798.7,1798.6,3.2078]
[1745757186712,5.5056,1798.9,1798.5,1.11177]
[1745757186917,1.6316,1798.8,1798.5,1.11177]
[1745757187118,1.11166,1798.7,1798.5,1.11177]
[1745757187718,1.6316,1798.8,1798.4,3.2078]
[1745757187919,1.1116,1798.8,1798.4,3.2078]
[1745757188119,1.1117,1798.7,1798.5,1.11175]
[1745757188322,1.1117,1798.7,1798.5,1.11173]
[1745757188826,2.74323,1798.8,1798.6,41.91173]
[1745757189125,1.11163,1798.8,1798.6,41.91850456]
[1745757189325,1.11166,1798.7,1798.6,44.01457456]
[1745757189829,1.11163,1798.8,1798.6,44.01457456]
[1745757190014,1.11166,1798.7,1798.6,45.12627456]
[1745757191026,1.11166,1798.7,1798.6,44.01457456]
[1745757191526,1.11164,1798.8,1798.7,1.11166]
[1745757192927,4.98554,1798.9,1798.8,1.1116]
[1745757193318,3.874,1798.9,1798.8,1.1116]
[1745757193524,4.98554,1798.9,1798.8,1.1116]
[1745757193726,1.11152,1799.0,1798.9,1.11154]
[1745757193923,2.69736,1799.1,1798.9,1.11154]
[1745757194120,0.7985,1799.4,1799.1,1.11142]
[1745757194329,1.11133,1799.3,1799.1,1.11137]
[1745757194523,1.5859,1799.4,1799.2,1.11136]
[1745757194724,1.11129,1799.3,1799.2,4.31912]
[1745757194932,1.11129,1799.3,1799.2,3.2078]
[1745757195225,1.5859,1799.4,1799.2,4.31911]
[1745757195528,1.11129,1799.3,1799.2,4.31911]
[1745757195727,1.11129,1799.3,1799.2,3.2078]
[1745757196126,1.11129,1799.3,1799.2,4.31916]
[1745757198830,1.11129,1799.3,1799.2,3.2078]
[1745757199030,1.11129,1799.3,1799.2,4.31916]
[1745757199332,1.11126,1799.4,1799.3,1.11127]
[1745757200032,2.6942,1799.5,1799.4,1.11123]
[1745757200424,2.6942,1799.5,1799.3,1.622]
[1745757200425,4.93715,1799.6,1799.5,1.11117]
[1745757200630,1.11122,1799.5,1799.4,1.11121]
[1745757201932,1.11122,1799.5,1799.4,2.82171]
[1745757203027,4.93715,1799.6,1799.5,1.11117]
[1745757203234,4.93715,1799.6,1799.5,2.82167]
[1745757203430,4.93715,1799.6,1799.5,1.7105]
[1745757205940,6.56565,1799.6,1799.5,1.7105]
[1745757206233,6.56565,1799.6,1799.5,2.82167]
[1745757206633,2.73965,1799.6,1799.5,1.7105]
[1745757208135,2.73965,1799.6,1799.5,2.82167]
[1745757211538,1.11129,1799.3,1799.2,3.2078]
[1745757211735,1.11142,1799.1,1798.9,5.7154]
[1745757212038,1.11154,1798.9,1798.8,1.11157]
[1745757212631,1.11154,1798.9,1798.8,2.81537]
[1745757213833,1.1116,1798.8,1798.7,1.89675]
[1745757214033,1.1116,1798.8,1798.7,3.46625]
[1745757214440,1.11158,1798.9,1798.8,1.11159]
[1745757214635,1.6748,1799.0,1798.7,2.3546]
[1745757214636,1.1116,1798.8,1798.7,3.46622]
[1745757216345,1.1116,1798.9,1798.8,1.1116]
[1745757216548,1.11154,1798.9,1798.8,1.1116]
[1745757216739,1.11154,1798.9,1798.8,2.6811]
[1745757217246,1.11154,1798.9,1798.8,1.5695]
[1745757217638,1.11154,1798.9,1798.8,2.6811]
[1745757220945,1.11154,1798.9,1798.8,1.5695]
[1745757222157,1.11154,1798.9,1798.8,2.6811]
[1745757224361,1.6748,1799.0,1798.9,1.11154]
[1745757224561,2.78628,1799.0,1798.9,2.74654]
[1745757224956,1.11145,1799.1,1799.0,1.11144]
[1745757225159,1.11141,1799.2,1799.1,1.11139]
[1745757225458,1.11141,1799.2,1799.1,1.635]
[1745757225652,1.11141,1799.2,1799.0,0.786]
[1745757225653,1.11152,1799.0,1798.9,1.11151]
[1745757226247,2.75277,1799.1,1799.0,1.11148]
[1745757226461,2.75277,1799.1,1799.0,2.82418]
[1745757226663,1.9412,1799.2,1799.1,1.11142]
[1745757226966,1.9412,1799.2,1799.1,2.82412]
[1745757227156,1.1114,1799.2,1799.1,2.82412]
[1745757227760,2.7527,1799.2,1799.1,2.82412]
[1745757228262,4.93634,1799.3,1799.2,1.11136]
[1745757228454,4.93634,1799.3,1799.2,2.82406]
[1745757228962,4.93629,1799.3,1799.2,2.82406]
[1745757229162,4.93629,1799.3,1799.2,4.46886]
[1745757229556,1.11122,1799.5,1799.4,1.11121]
[1745757230556,1.11123,1799.4,1799.3,2.71555]
[1745757230757,1.11123,1799.5,1799.4,1.11121]
[1745757231064,1.11123,1799.4,1799.3,2.71554]
[1745757234864,1.11123,1799.4,1799.3,2.97654]
[1745757239868,2.71512,1799.5,1799.4,1.11123]
[1745757240086,2.71512,1799.5,1799.4,2.75743]
[1745757240983,1.11122,1799.5,1799.4,2.75743]
[1745757244005,1.5801,1799.6,1799.4,1.6462]
[1745757244202,1.5801,1799.6,1799.5,1.6227]
[1745757244400,2.69121,1799.6,1799.5,1.6227]
[1745757247111,1.11123,1799.4,1799.3,1.37224]
[1745757247409,1.11123,1799.4,1799.3,2.97234]
[1745757250006,1.11121,1799.5,1799.4,1.11119]
[1745757250211,1.11121,1799.5,1799.4,2.75459]
[1745757250709,1.11114,1799.6,1799.5,1.11113]
[1745757250904,1.11114,1799.6,1799.5,2.5031]
[1745757252398,2.72434,1799.6,1799.5,2.5031]
[1745757252599,10.93214,1799.6,1799.3,0.261]
[1745757252796,4.31903,1799.4,1799.3,0.261]
[1745757253000,4.31903,1799.4,1798.6,44.01457456]
[1745757253001,1.1116,1798.8,1798.7,1.91545]
[1745757253211,1.1116,1798.8,1798.7,4.41855]
[1745757254008,1.11158,1798.9,1798.8,1.1116]
[1745757254493,2.3952,1799.1,1798.8,1.1116]
[1745757254708,1.11152,1799.0,1798.9,1.11154]
[1745757254901,1.562,1799.0,1798.9,1.11154]
[1745757255094,2.67348,1799.0,1798.9,1.11154]
[1745757255295,1.562,1799.0,1798.9,1.11154]
[1745757255493,1.11146,1799.1,1799.0,1.11148]
[1745757255794,1.562,1799.2,1799.1,1.11142]
[1745757256294,1.90471,1799.3,1799.2,1.11136]